bitfinex/quotes_BTCUSD_20251016
["timestamp","ask_amount","ask_price","bid_price","bid_amount"]
[1760629703311,0.6790523,109070.0,109060.0,0.00088]
[1760629703514,3.54253543,109070.0,109060.0,0.00088]
[1760629703732,0.1572813,109070.0,109060.0,0.00088]
[1760629703945,0.17483467,109070.0,109060.0,0.00088]
[1760629704166,3.53782914,109070.0,109060.0,0.00088]
[1760629704401,3.5441329,109070.0,109060.0,0.00088]
[1760629704616,3.36076443,109070.0,109060.0,0.00088]
[1760629705242,3.57586049,109070.0,109060.0,0.00088]
[1760629705471,3.39249202,109070.0,109060.0,0.00088]
[1760629705687,3.36076443,109070.0,109060.0,0.00088]
[1760629706098,3.1798048,109070.0,109060.0,0.00088]
[1760629706315,3.36317327,109070.0,109060.0,0.00088]
[1760629706525,0.00058255,109030.0,109010.0,0.01798804]
[1760629706733,0.13058255,109030.0,109010.0,0.01816019]
[1760629706946,0.13058255,109030.0,109020.0,0.18345257]
[1760629707575,0.13058255,109030.0,109010.0,0.00017215]
[1760629708029,0.13058255,109030.0,109010.0,0.18364134]
[1760629708246,0.13058255,109030.0,109010.0,0.18363642]
[1760629708460,0.13058255,109030.0,109010.0,0.00017215]
[1760629708676,0.13058255,109030.0,109010.0,0.19802357]
[1760629708885,0.13058255,109030.0,109010.0,0.18364008]
[1760629709549,0.13058255,109030.0,109020.0,0.20179782]
[1760629709772,0.13058255,109030.0,109020.0,0.18345257]
[1760629711902,0.2,109060.0,109050.0,0.1834021]
[1760629712127,0.01798804,109070.0,109020.0,0.18345257]
[1760629712327,2.790742,109060.0,109010.0,0.1926414]
[1760629712551,0.01275904,109050.0,109030.0,0.18343559]
[1760629712766,0.12,109050.0,109030.0,0.19260737]
[1760629712992,0.12,109050.0,109020.0,0.19262061]
[1760629713254,0.12009193,109050.0,109040.0,0.18341892]
[1760629714373,0.12009193,109050.0,109040.0,0.6767414]
[1760629715025,0.12009193,109050.0,109040.0,0.18341892]
[1760629715757,0.12009193,109050.0,109020.0,0.19262061]
[1760629715973,0.12009193,109050.0,109030.0,0.18342852]
[1760629716179,0.11009193,109050.0,109040.0,0.18341892]
[1760629716604,0.11009193,109050.0,109020.0,0.19262061]
[1760629716824,0.11009193,109050.0,109030.0,0.18343532]
[1760629717085,0.11009193,109050.0,109010.0,0.1926414]
[1760629717296,0.04,109050.0,109020.0,0.19262495]
[1760629717718,0.04,109050.0,109030.0,0.19296227]
[1760629717930,0.04,109050.0,109020.0,0.19262495]
[1760629718138,0.05669643,109050.0,109030.0,0.01086224]
[1760629718642,0.24010199,109050.0,109010.0,0.19263998]
[1760629718963,0.00917178,109030.0,109000.0,0.00158523]
[1760629719171,2.715641,109030.0,109000.0,0.20305774]
[1760629719353,0.1490628,109030.0,109000.0,0.18507146]
[1760629719652,0.13,109030.0,109000.0,0.00158523]
[1760629719868,0.13,109030.0,109000.0,0.19424519]
[1760629720720,0.13159799,109030.0,109000.0,0.19424519]
[1760629721178,0.14827942,109030.0,109000.0,0.19424519]
[1760629721621,0.14668143,109030.0,109000.0,0.20424519]
[1760629721850,0.14668143,109030.0,109010.0,0.18346528]
[1760629722057,0.14668143,109030.0,109000.0,0.20424519]
[1760629722276,0.14668143,109030.0,109010.0,0.18346917]
[1760629722488,0.14668143,109030.0,109000.0,0.20424519]
[1760629722697,0.14668143,109030.0,109000.0,0.19507076]
[1760629722910,0.14668143,109030.0,109000.0,0.20424507]
[1760629723781,0.14668143,109030.0,109010.0,0.20180718]
[1760629723990,0.14667038,109030.0,109000.0,0.20424507]
[1760629724203,0.14667038,109030.0,109000.0,0.21305797]
[1760629724412,0.13,109030.0,109020.0,0.67677505]
[1760629724619,0.13,109030.0,109020.0,0.18345257]
[1760629724852,1e-08,109030.0,109020.0,0.71295733]
[1760629725280,1e-08,109030.0,109020.0,0.18345257]
[1760629725713,1e-08,109030.0,109020.0,0.21963485]
[1760629725923,1e-08,109030.0,109020.0,0.71295733]
[1760629726155,0.00159761,109050.0,109040.0,0.18341892]
[1760629726369,0.11159761,109050.0,109040.0,0.71292368]
[1760629727008,0.11,109050.0,109040.0,0.71292368]
[1760629727449,0.11,109050.0,109040.0,0.2196012]
[1760629727685,0.17159715,109080.0,109070.0,0.18336847]
[1760629727902,0.17159715,109080.0,109070.0,0.18354062]
[1760629727903,0.12159715,109080.0,109070.0,0.18354062]
[1760629728109,0.12,109080.0,109070.0,0.71304538]
[1760629728320,0.12,109080.0,109070.0,0.81908538]
[1760629728789,0.00060429,109100.0,109090.0,0.21951714]
[1760629729005,0.12060429,109100.0,109090.0,0.18333486]
[1760629729216,0.12060429,109100.0,109090.0,0.71283962]
[1760629731158,0.12060429,109100.0,109090.0,0.71287962]
[1760629731578,0.12060429,109100.0,109090.0,0.71291962]
[1760629731780,0.12060429,109100.0,109090.0,0.71295962]
[1760629732589,0.19798804,109130.0,109120.0,0.18328445]
[1760629732823,0.13798804,109130.0,109120.0,0.67660693]
[1760629733038,0.11843921,109130.0,109120.0,0.67660693]
[1760629733240,0.11843921,109130.0,109120.0,0.18328445]
[1760629733636,0.11843921,109130.0,109120.0,0.67660693]
[1760629733865,0.11894082,109130.0,109120.0,0.67660693]
[1760629734317,0.12053704,109130.0,109120.0,0.67660693]
[1760629734953,0.12053704,109130.0,109120.0,0.67664693]
[1760629735160,0.12053704,109130.0,109120.0,0.67668693]
[1760629735404,0.12053704,109130.0,109120.0,0.18340445]
[1760629735605,0.12053704,109130.0,109120.0,0.00012]
[1760629735813,0.12053704,109130.0,109120.0,0.18340445]
[1760629736023,0.12053704,109130.0,109120.0,0.00012]
[1760629736722,0.12053704,109130.0,109120.0,0.01844844]
[1760629737419,0.12053704,109130.0,109120.0,0.01848844]
[1760629737886,0.12053704,109130.0,109120.0,0.01852844]
[1760629738116,0.12053704,109130.0,109120.0,0.01856844]
[1760629738346,0.12234934,109130.0,109120.0,0.18352445]
[1760629738582,0.12234934,109130.0,109120.0,0.67684693]
[1760629739025,0.12234934,109130.0,109120.0,0.18352445]
[1760629739210,0.12234934,109130.0,109120.0,0.67684693]
[1760629739448,0.12234934,109130.0,109120.0,0.18352445]
[1760629739864,0.12234934,109130.0,109120.0,0.71302921]
[1760629740374,0.12234934,109130.0,109120.0,0.18352445]
[1760629740614,0.12234934,109130.0,109120.0,0.00024]
[1760629740842,0.12234934,109130.0,109120.0,0.18352445]
[1760629741308,0.12234934,109130.0,109120.0,0.00024]
[1760629741557,0.12075312,109130.0,109120.0,0.00024]
[1760629742040,3.22966178,109130.0,109120.0,0.00024]
[1760629742513,0.46075312,109130.0,109120.0,0.00024]
[1760629742967,0.12075312,109130.0,109120.0,0.00024]
[1760629743823,0.30402078,109130.0,109120.0,0.00024]
[1760629744086,0.12075312,109130.0,109120.0,0.00024]
[1760629744729,0.30561742,109130.0,109120.0,0.00024]
[1760629745166,2.89125842,109130.0,109120.0,0.00024]
[1760629745387,3.26685324,109130.0,109120.0,0.00024]
[1760629745609,3.26685324,109130.0,109120.0,1e-08]
[1760629745820,3.71442399,109130.0,109120.0,1e-08]
[1760629746057,3.75060627,109130.0,109120.0,1e-08]
[1760629746517,3.75060627,109130.0,109050.0,0.01798804]
[1760629746518,0.52338529,109060.0,109050.0,0.01639099]
[1760629746746,3.23902629,109060.0,109050.0,0.01639099]
[1760629746949,2.585641,109040.0,109020.0,0.00012]
[1760629747159,0.13,109040.0,109020.0,0.00012]
[1760629747373,0.13,109040.0,109020.0,0.20155999]
[1760629747584,0.13,109040.0,109020.0,0.18357195]
[1760629747814,0.13,109040.0,109020.0,0.1837441]
[1760629748040,0.13,109040.0,109020.0,0.00029215]
[1760629748253,0.13829657,109040.0,109020.0,0.00029215]
[1760629748663,0.13989441,109040.0,109020.0,0.0186374]
[1760629749347,0.32331498,109040.0,109020.0,0.00029215]
[1760629749551,0.13989441,109040.0,109020.0,0.00029215]
[1760629750413,0.13829657,109040.0,109030.0,0.18343575]
[1760629750653,0.13,109040.0,109030.0,0.18343575]
[1760629751538,0.13,109040.0,109020.0,0.00029215]
[1760629752007,0.32998867,109040.0,109020.0,0.00029215]
[1760629752486,0.52343575,109030.0,109020.0,0.00029215]
[1760629752697,3.29647174,109030.0,109020.0,0.00029215]
[1760629752943,3.26471062,109030.0,109020.0,0.00029215]
[1760629753145,3.29647174,109030.0,109020.0,0.00029215]
[1760629754437,3.29647174,109030.0,109020.0,0.00017215]
[1760629754649,0.5234694,109010.0,109000.0,0.01671345]
[1760629754858,0.66910327,109010.0,109000.0,0.0168631]
[1760629755284,3.25474427,109010.0,109000.0,0.0168631]
[1760629755514,3.25634272,109010.0,109000.0,0.0168631]
[1760629755962,3.25634272,109010.0,109000.0,1e-08]
[1760629756180,3.72427329,109010.0,109000.0,1e-08]
[1760629756403,3.74000803,109010.0,109000.0,1e-08]
[1760629756645,3.94530951,109000.0,108990.0,4e-05]
[1760629756862,3.10914407,108990.0,108980.0,1.08375909]
[1760629757078,3.73161556,108990.0,108980.0,0.83505452]
[1760629757300,1.11432041,108990.0,108980.0,0.18349433]
[1760629757522,1.11432041,108990.0,108980.0,0.0430544]
[1760629757741,3.58636141,108990.0,108980.0,0.0430544]
[1760629757973,3.83174319,108980.0,108970.0,0.32926814]
[1760629758257,3.86177687,108960.0,108950.0,0.25718784]
[1760629758470,3.79591074,108960.0,108950.0,0.00461824]
[1760629758909,2.83562829,108940.0,108920.0,0.13762412]
[1760629759180,3.34126216,108940.0,108920.0,0.13762412]
[1760629759397,2.41182742,108930.0,108920.0,0.13762412]
[1760629759654,2.57596129,108930.0,108920.0,1e-08]
[1760629759867,3.21184428,108920.0,108910.0,1e-08]
[1760629760079,0.52367159,108890.0,108880.0,0.00281678]
[1760629760298,0.52371872,108870.0,108850.0,0.31019957]
[1760629760506,2.3718951,108860.0,108850.0,0.01189957]
[1760629760719,2.3718951,108860.0,108820.0,0.00206463]
[1760629760720,1.95867925,108840.0,108820.0,0.00206463]
[1760629760939,2.47867925,108840.0,108830.0,0.02289632]
[1760629761147,2.26329697,108840.0,108830.0,0.02289632]
[1760629761360,1.48128501,108840.0,108830.0,0.00116742]
[1760629761582,1.48128501,108840.0,108800.0,0.00564773]
[1760629761583,2.13833074,108820.0,108810.0,0.25086002]
[1760629761792,2.088041,108820.0,108810.0,0.2232337]
[1760629762019,1.9295468,108800.0,108790.0,0.20228774]
[1760629762243,1.9295468,108800.0,108790.0,0.17466142]
[1760629762244,1.019541,108800.0,108790.0,0.17466142]
[1760629762487,2.00336452,108800.0,108790.0,0.17466142]
[1760629762684,1.42839489,108800.0,108790.0,0.17466142]
[1760629762972,0.91885389,108800.0,108790.0,0.17466142]
[1760629763207,0.11935354,108800.0,108790.0,0.35850184]
[1760629763412,0.11935354,108800.0,108790.0,1.22763757]
[1760629763630,0.11935354,108800.0,108790.0,0.80490184]
[1760629763631,0.00935354,108800.0,108790.0,0.80490184]
[1760629763849,0.4,108850.0,108840.0,0.18375597]
[1760629763850,0.01798804,108850.0,108840.0,0.18375597]
[1760629764076,0.12798804,108850.0,108840.0,0.00014999]
[1760629764336,0.00635073,108860.0,108850.0,0.18373909]
[1760629764557,0.11474961,108860.0,108850.0,0.18173909]
[1760629764787,0.49999991,108850.0,108840.0,0.18390596]
[1760629765044,0.62999991,108850.0,108840.0,0.18390596]
[1760629765244,0.63199991,108850.0,108840.0,0.18390596]
[1760629765501,0.62999991,108850.0,108840.0,0.18390596]
[1760629766389,0.62999991,108850.0,108840.0,0.29122596]
[1760629766606,0.318261,108850.0,108840.0,0.32740824]
[1760629766851,0.00160035,108860.0,108850.0,0.18373909]
[1760629766852,0.10993135,108860.0,108850.0,0.18373909]
[1760629767064,0.01160035,108860.0,108850.0,0.18373909]
[1760629767491,0.01160035,108860.0,108840.0,0.00022999]
[1760629767700,0.01160035,108860.0,108840.0,0.00026999]
[1760629767906,0.01160035,108860.0,108840.0,0.00030999]
[1760629768135,0.01160035,108860.0,108840.0,0.00034999]
[1760629768386,0.01160035,108860.0,108840.0,0.00038999]
[1760629768625,0.01160035,108860.0,108840.0,0.00042999]
[1760629768626,0.34,108850.0,108840.0,0.00042999]
[1760629768875,0.34,108850.0,108840.0,0.18418088]
[1760629768876,0.12,108850.0,108840.0,0.18418088]
[1760629769134,1.21328009,108850.0,108840.0,0.00042999]
[1760629769355,0.46,108850.0,108840.0,0.00042999]
[1760629769574,0.46160084,108850.0,108840.0,0.00042999]
[1760629769806,1.21488093,108850.0,108840.0,0.00042999]
[1760629770057,1.61488093,108850.0,108840.0,0.00042999]
[1760629770304,0.46160084,108850.0,108840.0,0.00042999]
[1760629770565,1.21488093,108850.0,108840.0,0.00042999]
[1760629770802,1.029541,108850.0,108840.0,0.00042999]
[1760629771039,0.12160083,108850.0,108840.0,0.00042999]
[1760629771243,0.12,108850.0,108840.0,0.18418596]
[1760629771932,0.122,108850.0,108840.0,0.18418596]
[1760629772153,0.12,108850.0,108840.0,0.18418596]
[1760629772371,0.121,108850.0,108840.0,0.18418596]
[1760629773456,0.121,108850.0,108840.0,0.00042999]
[1760629773711,0.12,108850.0,108840.0,0.00042999]
[1760629773920,0.121,108850.0,108840.0,0.18897582]
[1760629774130,0.121,108850.0,108840.0,0.00521985]
[1760629774374,0.12160048,108850.0,108840.0,0.20735141]
[1760629774585,0.12260048,108850.0,108840.0,0.2251581]
[1760629774788,0.12260048,108850.0,108840.0,0.3311215]
[1760629775214,0.12260048,108850.0,108840.0,0.2241615]
[1760629775425,0.12260048,108850.0,108840.0,0.87917817]
[1760629775840,0.12260048,108850.0,108840.0,0.2241615]
[1760629776261,0.2,108880.0,108850.0,0.22908026]
[1760629776469,0.13798804,108910.0,108890.0,0.18367159]
[1760629776672,0.13798804,108910.0,108900.0,0.20202019]
[1760629776884,0.12824844,108910.0,108890.0,0.18367063]
[1760629777308,0.12824844,108910.0,108870.0,0.19288553]
[1760629777546,0.341,108900.0,108880.0,0.00736999]
[1760629777755,0.12824844,108910.0,108880.0,0.21084702]
[1760629777756,0.1287488,108910.0,108880.0,0.21084702]
[1760629777966,0.46050036,108910.0,108880.0,0.19286875]
[1760629778430,0.12050036,108910.0,108900.0,0.18365472]
[1760629778871,0.12150036,108910.0,108900.0,0.18365472]
[1760629779080,0.12150036,108910.0,108900.0,0.219837]
[1760629779946,0.12050036,108910.0,108900.0,0.219837]
[1760629780358,0.12050036,108910.0,108900.0,0.326477]
[1760629780785,0.12050036,108910.0,108900.0,0.326437]
[1760629780992,0.12050036,108910.0,108900.0,0.18373472]
[1760629781199,0.12050036,108910.0,108900.0,0.18377472]
[1760629781618,0.12050036,108910.0,108900.0,0.18381472]
[1760629781833,0.12050036,108910.0,108900.0,0.00016]
[1760629782066,0.12050036,108910.0,108900.0,0.18385472]
[1760629782281,0.12050036,108910.0,108900.0,0.03638228]
[1760629782487,0.12050036,108910.0,108900.0,0.0002]
[1760629782905,0.12050036,108910.0,108900.0,0.18385472]
[1760629783326,0.12050036,108910.0,108900.0,0.326357]
[1760629784174,0.12050036,108910.0,108900.0,0.326277]
[1760629785422,1e-08,108910.0,108900.0,0.220037]
[1760629785660,0.01798804,108960.0,108950.0,0.18357044]
[1760629785941,0.14798804,108960.0,108950.0,0.94761166]
[1760629786158,0.13,108960.0,108950.0,0.94761166]
[1760629786363,0.13,108960.0,108950.0,0.98379394]
[1760629786792,0.13,108960.0,108950.0,0.21990273]
[1760629787003,1e-08,108960.0,108950.0,1.32383394]
[1760629787262,0.04311618,109030.0,109010.0,0.18346783]
[1760629787475,0.04311618,109030.0,109020.0,0.18345257]
[1760629787476,0.15625363,109030.0,109020.0,0.18345257]
[1760629787700,0.13826559,109030.0,109020.0,0.3439001]
[1760629787926,0.00159774,109040.0,109030.0,0.55961803]
[1760629788153,0.04852971,109070.0,109060.0,0.18338529]
[1760629788367,0.04852971,109070.0,109050.0,0.1834021]
[1760629788368,0.155,109070.0,109050.0,0.1834021]
[1760629788575,0.15550128,109070.0,109040.0,0.00917094]
[1760629788789,0.15550128,109070.0,109030.0,0.00917178]
[1760629789014,0.001,109060.0,109020.0,0.01798804]
[1760629789221,0.569541,109050.0,109020.0,0.01798804]
[1760629789436,0.001,109040.0,109020.0,0.01798804]
[1760629789650,0.131,109040.0,109020.0,0.01798804]
[1760629789830,0.34,109030.0,109000.0,0.01798804]
[1760629790082,0.001,109020.0,109000.0,0.20147255]
[1760629790306,0.11,109020.0,109010.0,0.1834694]
[1760629790717,0.11,109020.0,109000.0,0.15848579]
[1760629791145,0.11050097,109020.0,109010.0,0.1834694]
[1760629791359,0.11050097,109020.0,109010.0,0.20181634]
[1760629791580,0.11050097,109020.0,109010.0,0.1834694]
[1760629791996,0.11050097,109020.0,108990.0,0.19267636]
[1760629792241,0.11050097,109020.0,109000.0,0.18348534]
[1760629792453,0.11050097,109020.0,108990.0,0.19267636]
[1760629792666,0.11050097,109020.0,109000.0,0.1834852]
[1760629792895,0.11050097,109020.0,109010.0,0.1835094]
[1760629793557,0.11050097,109020.0,109010.0,8e-05]
[1760629793761,0.11050097,109020.0,109010.0,0.1835894]
[1760629794174,0.11050097,109020.0,109010.0,0.1836294]
[1760629794382,0.11050097,109020.0,109010.0,0.1836694]
[1760629794601,0.11050097,109020.0,109010.0,0.21985168]
[1760629794848,0.10920097,109020.0,109010.0,0.1837094]
[1760629795266,0.10920097,109020.0,109010.0,0.1837494]
[1760629795895,0.10920097,109020.0,109010.0,0.1837894]
[1760629796965,0.10920097,109020.0,109010.0,0.21997168]
[1760629797829,0.10920097,109020.0,109010.0,0.1837894]
[1760629798045,0.10920097,109020.0,109010.0,0.21997168]
[1760629798671,0.10920097,109020.0,109010.0,0.1837894]
[1760629799147,0.18,109050.0,109010.0,0.19296287]
[1760629799148,0.001,109040.0,109010.0,0.19296287]
[1760629799366,0.071,109040.0,109010.0,0.19311288]
[1760629799585,0.071,109040.0,109020.0,0.18345147]
[1760629799803,0.569541,109030.0,109000.0,0.1926368]
[1760629800021,0.001,109020.0,109010.0,0.18346615]
[1760629800225,0.121,109020.0,109010.0,0.18346615]
[1760629800440,0.121,109020.0,109000.0,0.00050097]
[1760629800658,0.909541,109010.0,109000.0,0.00050097]
[1760629800869,0.12,109010.0,109000.0,0.1839872]
[1760629801303,0.025,109070.0,109060.0,0.18338529]
[1760629801510,0.155,109070.0,109060.0,0.18338529]
[1760629801722,0.1565977,109070.0,109060.0,0.18338529]
[1760629801928,0.1565977,109070.0,109050.0,0.1834021]
[1760629801929,0.155,109070.0,109040.0,0.19257304]
[1760629802138,0.001,109060.0,109040.0,0.1834021]
[1760629802352,0.02366307,109100.0,109070.0,0.192507]
[1760629802563,0.03821707,109100.0,109080.0,0.18334932]
[1760629802770,0.00159735,109090.0,109080.0,0.18334932]
[1760629802980,0.12159735,109090.0,109080.0,0.18335166]
[1760629803399,0.12,109090.0,109080.0,0.21953394]
[1760629803837,0.19,109120.0,109110.0,0.18330125]
[1760629804042,0.00159679,109140.0,109130.0,0.18326766]
[1760629804254,0.13209848,109140.0,109130.0,0.18326766]
[1760629804466,0.14032089,109140.0,109130.0,0.18326766]
[1760629805574,0.77985871,109210.0,109200.0,2.21839536]
[1760629805787,0.93646279,109210.0,109200.0,2.21242762]
[1760629805997,0.93060374,109210.0,109200.0,2.21242762]
[1760629806655,0.93060374,109210.0,109200.0,1.73079849]
[1760629806656,1.33060374,109210.0,109200.0,1.73079849]
[1760629806869,1.70678602,109210.0,109200.0,1.63980274]
[1760629807080,1.67219981,109210.0,109200.0,1.63980274]
[1760629807708,1.70838209,109210.0,109200.0,1.63980274]
[1760629807917,2.07219981,109210.0,109200.0,1.63980274]
[1760629808145,2.07219981,109210.0,109200.0,1.59480274]
[1760629808359,1.87987014,109210.0,109200.0,1.59484274]
[1760629808582,1.72300355,109210.0,109200.0,1.59484274]
[1760629808818,0.73987014,109210.0,109200.0,1.59488274]
[1760629809035,0.17032914,109210.0,109200.0,1.59488274]
[1760629809251,0.17032914,109210.0,109200.0,1.59492274]
[1760629809686,0.16182126,109210.0,109200.0,1.59496274]
[1760629810187,0.16182126,109210.0,109200.0,1.59500274]
[1760629810621,0.16182126,109210.0,109200.0,1.77819292]
[1760629810831,0.16182126,109210.0,109200.0,1.59504274]
[1760629811254,1.16540467,109210.0,109200.0,1.59504274]
[1760629811902,1.56540467,109210.0,109200.0,1.59504274]
[1760629812548,1.62868356,109210.0,109200.0,1.59504274]
[1760629812756,1.56540467,109210.0,109200.0,1.59504274]
[1760629813201,0.82540467,109210.0,109200.0,1.59504274]
[1760629813409,0.16182126,109210.0,109200.0,1.59504274]
[1760629814478,0.98227126,109210.0,109200.0,1.59504274]
[1760629814694,1.00129562,109210.0,109200.0,1.59504274]
[1760629815157,0.52290185,109210.0,109200.0,1.59504274]
[1760629815382,1.00335185,109210.0,109200.0,1.59504274]
[1760629815607,0.90239117,109210.0,109200.0,1.59504274]
[1760629815886,0.17553416,109210.0,109200.0,1.77819292]
[1760629816127,0.1585098,109210.0,109200.0,1.59504274]
[1760629816368,0.6389598,109210.0,109200.0,1.59504274]
[1760629816611,0.65798416,109210.0,109200.0,1.59504274]
[1760629816852,0.17553416,109210.0,109200.0,1.77819292]
[1760629817099,0.1565098,109210.0,109200.0,1.77819292]
[1760629817552,0.14,109210.0,109200.0,1.8143752]
[1760629817772,0.14,109210.0,109200.0,1.77819292]
[1760629817992,0.01557954,109220.0,109210.0,0.21931569]
[1760629818214,0.0002,109240.0,109230.0,0.18309988]
[1760629818435,0.1302,109240.0,109230.0,0.18309988]
[1760629818876,0.1302,109240.0,109210.0,0.00043914]
[1760629819097,0.1302,109240.0,109210.0,0.19272917]
[1760629819311,0.1302,109240.0,109210.0,0.00043914]
[1760629819528,0.31329085,109240.0,109210.0,0.00043914]
[1760629819759,0.1302,109240.0,109210.0,0.01842718]
[1760629819971,0.1312,109240.0,109210.0,0.01842718]
[1760629820223,0.1312,109240.0,109220.0,0.18310197]
[1760629820463,0.1312,109240.0,109210.0,0.19269972]
[1760629820704,0.1312,109240.0,109210.0,0.00043914]
[1760629820950,0.1312,109240.0,109210.0,0.01875248]
[1760629821182,0.1302,109240.0,109210.0,0.19272085]
[1760629821384,0.1302,109240.0,109220.0,0.18311632]
[1760629821639,0.1312,109240.0,109230.0,0.20099471]
[1760629821877,0.1302,109240.0,109230.0,0.18309988]
[1760629822106,0.1302,109240.0,109230.0,0.21928216]
[1760629823055,0.1302,109240.0,109220.0,0.18311632]
[1760629823293,0.1302,109240.0,109230.0,0.18309988]
[1760629823528,0.1302,109240.0,109220.0,0.18311598]
[1760629824016,0.00120649,109230.0,109220.0,0.18310811]
[1760629824221,0.13120649,109230.0,109220.0,0.18310811]
[1760629825063,0.13120649,109230.0,109210.0,0.00043914]
[1760629825316,0.13,109230.0,109210.0,0.21975385]
[1760629825525,0.13,109230.0,109220.0,0.18311664]
[1760629826398,0.13,109230.0,109220.0,0.21929892]
[1760629827327,0.13,109230.0,109220.0,0.18311664]
[1760629827556,0.13,109230.0,109220.0,0.8248789]
[1760629827763,0.0002,109240.0,109230.0,0.18309988]
[1760629828037,0.1202,109240.0,109230.0,0.28857988]
[1760629828749,0.1202,109240.0,109230.0,0.21928216]
[1760629828955,0.1202,109240.0,109230.0,0.55928216]
[1760629829175,0.1202,109240.0,109230.0,0.21928216]
[1760629829435,0.11625471,109240.0,109230.0,0.66476216]
[1760629829672,0.0002,109270.0,109260.0,0.21923188]
[1760629829905,0.1302,109270.0,109260.0,0.21923188]
[1760629830123,0.1302,109270.0,109260.0,0.03618228]
[1760629830346,0.1302,109270.0,109260.0,0.21923188]
[1760629830988,0.13070097,109270.0,109260.0,0.21923188]
[1760629831412,0.1343191,109270.0,109260.0,0.21923188]
[1760629831854,0.1343191,109270.0,109260.0,0.1830496]
[1760629833402,0.1343191,109270.0,109260.0,0.5230496]
[1760629833816,0.1343191,109270.0,109260.0,0.6284496]
[1760629834026,0.1343191,109270.0,109260.0,0.55923188]
[1760629834245,0.1343191,109270.0,109260.0,0.66463188]
[1760629834666,0.1343191,109270.0,109260.0,0.66563188]
[1760629834891,8e-05,109290.0,109280.0,0.55919838]
[1760629835145,0.12023019,109290.0,109280.0,0.55919838]
[1760629835370,0.12023019,109290.0,109280.0,0.1830161]
[1760629836279,0.12023019,109290.0,109260.0,0.01798804]
[1760629836500,0.12023019,109290.0,109260.0,0.20102504]
[1760629836721,0.12023019,109290.0,109260.0,0.19319931]
[1760629836936,0.12023019,109290.0,109260.0,0.001]
[1760629837151,0.3032307,109290.0,109250.0,0.19221717]
[1760629837368,0.3032307,109290.0,109240.0,0.21021579]
[1760629837369,0.19217817,109280.0,109240.0,0.01798804]
[1760629837579,0.13,109280.0,109250.0,0.19221897]
[1760629837801,0.13,109280.0,109250.0,0.18306549]
[1760629838231,0.13,109280.0,109250.0,0.1922188]
[1760629839081,0.13,109280.0,109240.0,0.21022352]
[1760629839328,0.13,109280.0,109270.0,0.18303285]
[1760629840680,0.13,109280.0,109270.0,0.21921513]
[1760629841116,0.1306028,109280.0,109270.0,0.18303285]
[1760629841571,0.1306028,109280.0,109250.0,0.19221886]
[1760629841777,0.1306028,109280.0,109250.0,0.19221531]
[1760629841988,0.1306028,109280.0,109270.0,0.18403285]
[1760629842852,0.1306028,109280.0,109270.0,0.001]
[1760629843273,0.1306028,109280.0,109270.0,0.18403285]
[1760629843485,0.34,109300.0,109270.0,0.18303285]
[1760629843694,0.57214472,109300.0,109270.0,0.00043914]
[1760629844118,0.18300229,109290.0,109270.0,0.00043914]
[1760629844333,0.14,109290.0,109270.0,0.00043914]
[1760629845183,0.34,109280.0,109270.0,0.00043914]
[1760629845393,0.47,109280.0,109270.0,0.00043914]
[1760629845823,1.1334661,109280.0,109270.0,0.00043914]
[1760629846250,1.15259324,109280.0,109270.0,0.00043914]
[1760629846495,1.16919729,109280.0,109270.0,0.00043914]
[1760629846713,1.20537957,109280.0,109270.0,0.00043914]
[1760629847380,1.21368185,109280.0,109270.0,0.00043914]
[1760629847832,1.24520955,109280.0,109270.0,0.00043914]
[1760629848038,1.24522609,109280.0,109270.0,0.00043914]
[1760629848511,1.23790727,109280.0,109270.0,0.00043914]
[1760629848771,1.24622614,109280.0,109270.0,0.00047914]
[1760629848985,1.21469823,109280.0,109270.0,0.00047914]
[1760629849205,1.23790727,109280.0,109270.0,0.00047914]
[1760629849683,1.00351636,109250.0,109240.0,0.01798804]
[1760629849912,1.1626435,109250.0,109240.0,0.01848901]
[1760629850118,0.96045,109250.0,109240.0,0.01838581]
[1760629850365,1.16268943,109250.0,109240.0,0.00050097]
[1760629850885,1.17969864,109250.0,109240.0,0.00050097]
[1760629851093,1.59987207,109250.0,109240.0,0.00050097]
[1760629851769,1.61651176,109250.0,109240.0,0.00050097]
[1760629852240,1.61651176,109250.0,109240.0,0.00054097]
[1760629852241,1.16368979,109250.0,109240.0,0.00054097]
[1760629852887,0.96145,109250.0,109240.0,0.00058097]
[1760629853114,1.14451636,109250.0,109240.0,0.00058097]
[1760629853550,0.96145,109250.0,109240.0,0.00058097]
[1760629853767,1.14451636,109250.0,109240.0,0.00062097]
[1760629853988,1.59986118,109250.0,109240.0,0.00062097]
[1760629854239,1.59986118,109250.0,109200.0,1.61303078]
[1760629854240,0.00097423,109210.0,109200.0,1.61303078]
[1760629854462,0.47097423,109210.0,109200.0,1.61318097]
[1760629854946,0.47097423,109210.0,109200.0,1.59519293]
[1760629855372,0.48629037,109210.0,109200.0,1.59519293]
[1760629856316,0.13097423,109210.0,109200.0,1.77834311]
[1760629857396,0.13097423,109210.0,109200.0,1.59519293]
[1760629858522,0.13097423,109210.0,109200.0,1.77834311]
[1760629858754,0.13097423,109210.0,109200.0,1.59519293]
[1760629859414,0.13097423,109210.0,109200.0,1.77834311]
[1760629860086,0.13097423,109210.0,109200.0,1.59519293]
[1760629860314,0.13,109210.0,109200.0,1.59519293]
[1760629860787,0.13,109210.0,109200.0,1.77834311]
[1760629861279,0.19,109240.0,109230.0,0.18309988]
[1760629861506,0.69045,109270.0,109260.0,0.18304583]
[1760629861730,0.69045,109270.0,109260.0,0.19220208]
[1760629861731,0.12,109270.0,109260.0,0.19220208]
[1760629861971,0.13490116,109270.0,109250.0,0.18306596]
[1760629862220,0.13490116,109270.0,109250.0,0.18306597]
[1760629862221,0.12,109270.0,109250.0,0.18306597]
[1760629862488,0.12,109270.0,109260.0,0.1830496]
[1760629862733,0.12050053,109270.0,109250.0,0.18306597]
[1760629862984,0.3126916,109270.0,109230.0,0.20108703]
[1760629863181,0.3126916,109270.0,109230.0,0.21024267]
[1760629863182,0.34,109260.0,109230.0,0.21024267]
[1760629863384,0.46,109260.0,109230.0,0.21024267]
[1760629863595,0.46,109260.0,109230.0,0.19225441]
[1760629863840,0.46,109260.0,109220.0,0.19227056]
[1760629864042,0.46,109260.0,109230.0,0.18309598]
[1760629864247,0.46,109260.0,109240.0,0.18307931]
[1760629864459,0.46,109260.0,109230.0,0.1922539]
[1760629864665,0.46,109260.0,109230.0,0.18309902]
[1760629864878,0.461,109260.0,109240.0,0.01814023]
[1760629865091,0.46,109260.0,109240.0,0.01814023]
[1760629865317,0.46,109260.0,109200.0,1.78734646]
[1760629865318,0.48045,109240.0,109200.0,1.78734646]
[1760629865531,0.34,109230.0,109210.0,0.01798804]